bitfinex-derivatives/quotes_SOLF0:USTF0_20250411
["timestamp","ask_amount","ask_price","bid_price","bid_amount"]
[1744378322236,41.05945976,118.7,118.67,0.0542323]
[1744378322636,34.37575851,118.69,118.67,0.0542323]
[1744378322836,34.37575851,118.69,118.6,10.32295991]
[1744378323141,34.37575851,118.66,118.6,8.8564]
[1744378323336,41.0,118.65,118.6,8.8564]
[1744378323737,8.4352,118.62,118.6,8.8564]
[1744378323933,41.0,118.65,118.6,2.8992]
[1744378324136,0.06141812,118.62,118.6,2.95330473]
[1744378324337,8.49681812,118.62,118.6,2.95330473]
[1744378324642,0.06141812,118.62,118.6,2.95330473]
[1744378325139,43.8523,118.68,118.6,2.95330473]
[1744378325331,8.4333,118.65,118.62,8.4345]
[1744378325531,8.4333,118.65,118.6,2.8992]
[1744378325839,8.4333,118.65,118.63,8.4343]
[1744378326136,8.4338,118.64,118.63,0.0621995]
[1744378326534,0.05992475,118.65,118.63,0.0621995]
[1744378326736,8.49332475,118.65,118.63,0.0621995]
[1744378326949,41.02,118.71,118.63,29.77928412]
[1744378327246,8.4298,118.7,118.64,2.9101]
[1744378327448,5.7667,118.73,118.65,21.29708462]
[1744378327650,5.7667,118.73,118.65,24.13158462]
[1744378328049,0.06198726,118.7,118.67,21.29708462]
[1744378328247,21.29708462,118.75,118.68,0.05323372]
[1744378328447,8.4284,118.72,118.68,8.48383372]
[1744378328849,21.29708462,118.75,118.68,8.48383372]
[1744378329056,8.4282,118.72,118.69,8.4301]
[1744378329251,21.29708462,118.75,118.68,0.05323372]
[1744378329451,21.29708462,118.71,118.69,4.228e-05]
[1744378329652,65.28918462,118.7,118.64,11.57402659]
[1744378329959,21.29708462,118.68,118.64,11.57402659]
[1744378330458,2.8319,118.69,118.64,11.57402659]
[1744378330865,8.48601806,118.68,118.65,0.06215871]
[1744378331154,21.35180268,118.68,118.65,0.06215871]
[1744378331348,21.29708462,118.66,118.59,2.9859]
[1744378331546,42.5,118.65,118.59,2.9859]
[1744378331958,8.4348,118.63,118.59,11.4228]
[1744378332258,42.5,118.65,118.59,2.9859]
[1744378332461,0.0535249,118.62,118.6,0.06038574]
[1744378334957,8.4358,118.61,118.6,0.06038574]
[1744378338455,77.11393075,118.61,118.54,18.88446887]
[1744378338655,77.11393075,118.61,118.54,17.41682659]
[1744378338957,8.4391,118.57,118.54,25.85712659]
[1744378339158,77.11393075,118.61,118.54,11.57402659]
[1744378339558,77.11393075,118.61,118.56,0.05785987]
[1744378339559,0.06251565,118.59,118.56,0.05785987]
[1744378340658,8.4385,118.58,118.56,0.05785987]
[1744378341261,0.06251565,118.59,118.56,0.05785987]
[1744378342062,34.6764464,118.59,118.56,0.05785987]
[1744378342864,8.4387,118.57,118.56,0.05785987]
[1744378343165,50.9587,118.57,118.56,0.05785987]
[1744378343959,0.06251565,118.59,118.56,0.05785987]
[1744378344558,34.6764464,118.59,118.56,0.05785987]
[1744378344758,40.1360464,118.59,118.56,0.05785987]
[1744378344958,0.06251565,118.59,118.56,0.05785987]
[1744378345759,42.52,118.63,118.56,34.67179062]
[1744378345953,8.4354,118.62,118.59,8.4368]
[1744378346166,42.52,118.66,118.57,2.6159]
[1744378346362,34.61393075,118.65,118.57,2.6159]
[1744378346559,34.61393075,118.65,118.59,8.4372]
[1744378346759,8.4353,118.62,118.59,8.4372]
[1744378347064,0.06421702,118.62,118.59,0.06051326]
[1744378347260,8.49931702,118.62,118.59,0.06051326]
[1744378347466,0.06421702,118.62,118.59,0.06051326]
[1744378348267,8.4362,118.61,118.59,0.06051326]
[1744378348667,8.4362,118.61,118.59,8.49731326]
[1744378348869,8.4362,118.61,118.59,0.06051326]
[1744378349268,8.4362,118.61,118.59,8.49761326]
[1744378349765,8.49971702,118.62,118.6,8.4365]
[1744378349967,0.06421702,118.62,118.59,0.06051326]
[1744378350166,43.04383075,118.7,118.59,445.63444401]
[1744378350368,34.61393075,118.74,118.63,34.61393075]
[1744378350565,2.8669,118.73,118.63,77.13393075]
[1744378350767,45.3869,118.73,118.64,5.574]
[1744378351072,45.3869,118.73,118.68,8.4303]
[1744378351271,53.8145,118.73,118.68,8.4303]
[1744378351570,0.06404208,118.72,118.69,0.0599142]
[1744378352671,42.5,118.71,118.69,0.0599142]
[1744378353569,50.9291,118.71,118.69,0.0599142]
[1744378354071,8.4294,118.7,118.66,8.4316]
[1744378354380,42.5,118.71,118.67,8.4315]
[1744378354568,50.9291,118.71,118.67,8.4315]
[1744378355069,42.5,118.71,118.68,8.4306]
[1744378355265,0.05557016,118.7,118.68,8.48445062]
[1744378355768,0.05557016,118.7,118.68,0.05385062]
[1744378356370,8.48507016,118.7,118.68,0.05385062]
[1744378357169,0.05557016,118.7,118.61,2.8298]
[1744378357366,2.7169,118.7,118.61,2.8298]
[1744378357571,8.4314,118.68,118.61,2.8298]
[1744378357772,50.9314,118.68,118.61,2.8298]
[1744378358279,0.06089011,118.66,118.63,0.05322897]
[1744378358462,628.37700433,118.65,118.55,46.29610637]
[1744378358664,21.27700433,118.61,118.55,46.29610637]
[1744378358866,42.5,118.6,118.55,46.29610637]
[1744378359574,0.05455146,118.59,118.56,0.05994497]
[1744378359875,8.49225146,118.59,118.56,0.05994497]
[1744378360369,8.438,118.58,118.56,0.05994497]
[1744378360567,63.83155579,118.59,118.56,0.05994497]
[1744378360766,21.27700433,118.57,118.56,0.05994497]
[1744378361571,29.71570433,118.57,118.56,0.05994497]
[1744378361776,21.27700433,118.57,118.51,2.8262]
[1744378362172,8.4414,118.54,118.49,8.4442]
[1744378362476,64.57700433,118.57,118.48,72.78910433]
[1744378362678,8.4405,118.55,118.48,72.78910433]
[1744378362874,21.27700433,118.59,118.5,21.27700433]
[1744378363065,43.3,118.59,118.5,21.27700433]
[1744378363278,8.4403,118.55,118.53,0.06451777]
[1744378363470,0.05366279,118.56,118.53,0.06451777]
[1744378363777,8.4408,118.54,118.53,0.06451777]
[1744378365270,8.4405,118.55,118.53,0.06451777]
[1744378365471,0.05366279,118.56,118.53,0.06451777]
[1744378365775,8.4408,118.54,118.53,0.06451777]
[1744378365965,0.05366279,118.56,118.53,0.06451777]
[1744378366672,43.32,118.55,118.53,0.06451777]
[1744378366873,8.4408,118.54,118.53,0.06451777]
[1744378367375,0.05366279,118.56,118.53,0.06451777]
[1744378367878,43.32,118.61,118.54,21.27700433]
[1744378368083,8.4376,118.59,118.55,5.5202]
[1744378368377,43.32,118.61,118.56,8.439]
[1744378368584,8.4371,118.6,118.56,8.439]
[1744378368775,607.22,118.63,118.58,8.4373]
[1744378368980,0.05306004,118.59,118.58,8.4373]
[1744378369276,0.05343583,118.6,118.58,8.4373]
[1744378369983,0.05343583,118.6,118.57,21.33011079]
[1744378370381,43.32,118.64,118.61,8.4356]
[1744378370582,43.32,118.67,118.59,21.27700433]
[1744378370780,43.32,118.67,118.62,8.4348]
[1744378370975,8.4326,118.66,118.62,8.4348]
[1744378371172,43.32,118.67,118.62,8.4348]
[1744378371576,8.4333,118.65,118.63,0.05692183]
[1744378371780,0.06199396,118.66,118.63,0.05692183]
[1744378372081,8.4337,118.64,118.63,0.05692183]
[1744378373884,0.06199396,118.66,118.63,0.05692183]
[1744378374883,8.4333,118.65,118.63,0.05692183]
[1744378375085,0.06199396,118.66,118.63,0.05692183]
[1744378375487,8.4337,118.64,118.63,0.05692183]
[1744378376883,8.4362,118.61,118.58,11.0621]
[1744378377285,43.3,118.62,118.55,29.66610433]
[1744378377585,8.4364,118.61,118.57,8.4382]
[1744378377787,8.4364,118.61,118.55,29.66610433]
[1744378378088,8.4364,118.61,118.58,8.4378]
[1744378379190,21.27700433,118.64,118.59,8.4368]
[1744378379382,5.6424,118.65,118.55,29.66610433]
[1744378379589,48.9424,118.65,118.55,29.66610433]
[1744378379884,48.9424,118.65,118.61,8.4358]
[1744378380285,43.3,118.65,118.62,8.4349]
[1744378380491,43.3,118.65,118.59,21.27700433]
[1744378380690,43.3,118.65,118.6,2.817]
[1744378380993,0.06199396,118.66,118.6,2.817]
[1744378381190,0.06199396,118.66,118.61,5.3209]
[1744378381592,0.06199396,118.66,118.61,26.59790433]
[1744378381990,0.06199396,118.66,118.64,8.4332]
[1744378382192,0.06199396,118.66,118.62,0.05696743]
[1744378382595,8.49439396,118.66,118.62,0.05696743]
[1744378382784,0.06199396,118.66,118.62,0.05696743]
[1744378382988,8.4293,118.71,118.63,21.27700433]
[1744378383188,26.54610433,118.73,118.63,21.27700433]
[1744378383496,21.27700433,118.69,118.63,8.4341]
[1744378383696,43.3,118.68,118.63,8.4341]
[1744378384089,8.4324,118.66,118.64,8.4333]
[1744378384393,8.4324,118.66,118.64,0.05896834]
[1744378384698,8.4324,118.66,118.64,8.49236834]
[1744378384994,0.05806503,118.67,118.66,8.4323]
[1744378385294,0.05806503,118.67,118.64,0.05896834]
[1744378385595,43.3,118.66,118.64,0.05896834]
[1744378385988,8.433,118.65,118.64,0.05896834]
[1744378386191,29.71000433,118.65,118.64,0.05896834]
[1744378386498,8.4353,118.62,118.56,365.4207]
[1744378386703,43.3,118.62,118.56,8.1617]
[1744378387499,0.05595172,118.6,118.58,0.06050828]
[1744378388101,0.05595172,118.6,118.59,8.4373]
[1744378388997,43.3,118.65,118.58,0.06050828]
[1744378389499,8.4345,118.63,118.58,0.06050828]
[1744378390000,0.06449402,118.62,118.58,0.06050828]
[1744378390805,0.06449402,118.62,118.6,8.4359]
[1744378391094,8.49969402,118.62,118.6,8.4359]
[1744378391300,0.06449402,118.62,118.58,0.06050828]
[1744378392503,0.06449402,118.62,118.6,8.4361]
[1744378392800,42.22,118.61,118.58,0.06050828]
[1744378393303,8.4373,118.59,118.58,0.06050828]
[1744378393502,42.22,118.61,118.58,0.06050828]
[1744378394196,21.27700433,118.6,118.52,2.683]
[1744378394399,8.439,118.57,118.52,2.683]
[1744378394600,50.659,118.57,118.52,2.683]
[1744378394804,50.659,118.57,118.55,8.4401]
[1744378395204,42.22,118.57,118.55,8.4401]
[1744378395505,42.27899032,118.57,118.56,8.4394]
[1744378395703,0.05899032,118.57,118.56,8.4394]
[1744378396204,0.05899032,118.57,118.55,8.50056434]
[1744378396704,8.49799032,118.57,118.55,8.50056434]
[1744378397706,0.05899032,118.57,118.55,8.50056434]
[1744378397906,0.05899032,118.57,118.56,8.4394]
[1744378398212,0.05899032,118.57,118.55,0.06086434]
[1744378398895,0.05899032,118.57,118.55,8.50066434]
[1744378399099,0.05899032,118.57,118.55,0.06086434]
[1744378399503,0.05899032,118.57,118.56,8.4394]
[1744378400107,47.6673,118.63,118.56,2.6372]
[1744378400502,47.6673,118.63,118.58,8.4379]
[1744378400698,68.94430433,118.63,118.56,2.6372]
[1744378401006,8.439,118.57,118.52,4.15048756]
[1744378401512,0.05917995,118.56,118.53,0.05472642]
[1744378402711,0.05917995,118.56,118.55,8.4401]
[1744378403406,0.05917995,118.56,118.53,0.05472642]
[1744378403407,42.22,118.58,118.57,8.4387]
[1744378403705,8.4369,118.6,118.53,21.27700433]
[1744378403904,42.22,118.61,118.59,8.437]
[1744378404100,42.22,118.61,118.55,21.27700433]
[1744378404309,13.882,118.63,118.53,16.8827]
[1744378404310,42.22,118.64,118.57,21.27700433]
[1744378404515,0.0594934,118.62,118.59,0.06191109]
[1744378404904,0.0594934,118.62,118.61,8.4358]
[1744378405406,649.6,118.67,118.61,8.4355]
[1744378405708,670.87700433,118.67,118.58,2.744]
[1744378405911,8.4349,118.63,118.59,8.4368]
[1744378406110,8.4349,118.63,118.58,2.744]
[1744378406311,8.4333,118.65,118.58,2.744]
[1744378406511,0.06030886,118.63,118.61,8.4354]
[1744378406810,0.06030886,118.63,118.6,0.05741103]
[1744378407606,42.28030886,118.63,118.6,0.05741103]
[1744378408314,8.4357,118.62,118.6,0.05741103]
[1744378409516,8.4358,118.61,118.6,0.05741103]
[1744378410404,8.4387,118.57,118.55,8.44]
[1744378410704,2.7623,118.62,118.55,8.44]
[1744378410913,8.4386,118.58,118.55,8.44]
[1744378411217,21.27700433,118.61,118.53,47.8261]
[1744378411514,0.06333551,118.58,118.55,0.06341168]
[1744378412312,0.06333551,118.58,118.57,8.4382]
[1744378413616,42.22,118.63,118.55,21.34041601]
[1744378413817,42.22,118.63,118.55,21.27700433]
[1744378414016,42.22,118.63,118.58,8.4376]
[1744378414217,5.6483,118.64,118.53,69.10310433]
[1744378414418,8.4354,118.62,118.6,8.4364]
[1744378414718,8.4354,118.62,118.61,0.06337859]
[1744378414917,8.4354,118.62,118.55,21.27700433]
[1744378415119,8.4354,118.62,118.6,0.06313149]
[1744378415416,8.4358,118.61,118.6,0.06040111]
[1744378415810,8.49253125,118.62,118.6,0.06040111]
[1744378416010,0.05703125,118.62,118.6,8.49680111]
[1744378416219,0.05703125,118.62,118.6,0.06040111]
[1744378416422,8.49263125,118.62,118.6,0.06040111]
[1744378417523,8.4358,118.61,118.6,0.06040111]
[1744378417916,0.05703125,118.62,118.6,0.06040111]
[1744378418126,3.125e-05,118.62,118.6,0.06040111]
[1744378418422,44.937,118.7,118.61,63.49700433]
[1744378418721,8.4319,118.67,118.61,42.22]
[1744378419022,44.937,118.7,118.65,8.4324]
[1744378419220,8.431,118.68,118.65,8.4324]
[1744378419425,0.06070835,118.69,118.66,0.05378904]
[1744378419622,44.937,118.7,118.65,8.4329]
[1744378419822,21.33716415,118.69,118.66,0.06142678]
[1744378420022,21.27700433,118.69,118.66,0.06142678]
[1744378420326,21.33848486,118.69,118.66,0.06142678]
[1744378420920,0.06148053,118.69,118.66,0.06142678]
[1744378421227,0.06148053,118.69,118.66,8.49342678]
[1744378421421,8.49198053,118.69,118.66,8.49342678]
[1744378421618,0.06148053,118.69,118.66,0.06142678]
[1744378422322,0.06148053,118.69,118.68,8.4309]
[1744378423925,44.3126,118.79,118.68,8.42]
[1744378424128,49.8157,118.79,118.7,21.27700433]
[1744378424424,41.58,118.79,118.67,2.7086]
[1744378424628,5.6631,118.78,118.7,21.27700433]
[1744378424831,50.0034,118.79,118.72,21.27700433]
[1744378425023,41.58,118.79,118.73,2.76327475]
[1744378425327,0.05996848,118.75,118.73,2.76327475]
[1744378425523,0.05996848,118.75,118.74,8.426]
[1744378426220,6.848e-05,118.75,118.74,8.426]
[1744378426422,6.848e-05,118.75,118.74,29.70300433]
[1744378427129,138.18203371,118.84,118.74,71.27700433]
[1744378427429,146.60193371,118.84,118.76,21.27700433]
[1744378427630,5.5856,118.85,118.78,21.27700433]
[1744378428030,41.58,118.92,118.8,21.27700433]
[1744378428232,28.26280658,118.91,118.8,21.27700433]
[1744378428432,0.05567149,118.83,118.8,21.33349339]
[1744378428629,41.58,118.88,118.82,8.4209]
[1744378428833,0.06297081,118.83,118.8,83.34148701]
[1744378429136,8.4174,118.87,118.82,8.4206]
[1744378429330,0.05587006,118.83,118.82,8.4206]
[1744378429528,8.4174,118.87,118.82,8.4206]
[1744378429726,0.05896336,118.84,118.82,8.4206]
[1744378430132,0.05896336,118.84,118.83,8.4202]
[1744378430635,47.0747,118.91,118.82,65.44780433]
[1744378431136,5.5147,118.91,118.84,21.27700433]
[1744378431327,2.6817,118.91,118.84,21.27700433]
[1744378431524,2.6817,118.91,118.85,2.6825]
[1744378431729,0.05967923,118.89,118.86,8.47901542]
[1744378432133,0.05967923,118.89,118.86,0.06141542]
[1744378433235,0.05967923,118.89,118.86,8.47921542]
[1744378433837,0.05967923,118.89,118.86,0.06141542]
[1744378434336,0.05967923,118.89,118.86,8.47921542]
[1744378434637,0.05967923,118.89,118.86,0.06141542]
[1744378434934,0.05967923,118.89,118.88,8.4167]
[1744378435530,0.05967923,118.89,118.87,8.4169]
[1744378435832,0.05967923,118.89,118.86,0.06141542]
[1744378436038,0.05967923,118.89,118.87,8.417]
[1744378437944,0.05967923,118.89,118.88,8.4167]
[1744378438135,5.4664,118.97,118.88,21.27700433]
[1744378438336,8.3116,118.97,118.88,21.27700433]
[1744378438834,8.3116,118.97,118.86,62.79700433]
[1744378439035,8.4125,118.94,118.91,8.4144]
[1744378439341,8.3116,118.97,118.9,0.05988918]
[1744378439734,49.8316,118.97,118.9,0.05988918]
[1744378439939,8.4118,118.95,118.91,8.4144]
[1744378440142,49.8316,118.97,118.88,21.27700433]
[1744378440439,49.8316,118.97,118.92,0.06241693]
[1744378440636,8.4121,118.95,118.92,0.06241693]
[1744378441445,49.8316,118.97,118.92,0.06241693]
[1744378441944,8.4114,118.96,118.92,0.06241693]
[1744378442141,49.8316,118.97,118.92,0.06241693]
[1744378442344,8.3116,118.97,118.92,0.06241693]
[1744378442649,41.5,119.01,118.92,21.33942126]
[1744378442941,49.9079,119.01,118.97,8.4096]
[1744378443151,49.9079,119.01,118.95,0.05418094]
[1744378443339,41.5,119.01,118.94,21.27700433]
[1744378443537,41.5,119.01,118.99,8.4087]
[1744378443746,8.4071,119.02,118.99,8.4087]
[1744378444344,11.1391,119.03,119.0,8.4081]
[1744378444542,2.7327,119.03,118.95,47.0151]
[1744378444744,2.7327,119.03,119.0,0.05462427]
[1744378445041,21.27700433,119.02,119.0,0.05462427]
[1744378445440,41.5,119.01,119.0,0.05462427]
[1744378445639,5.4156,119.06,119.0,0.05462427]
[1744378445640,41.5,119.04,119.0,0.05462427]
[1744378446645,647.48,119.07,119.0,21.3316286]
[1744378446851,41.5,119.07,119.0,62.8316286]
[1744378447037,41.5,119.07,119.0,21.3316286]
[1744378447241,41.5,119.07,119.0,0.05462427]
[1744378447544,41.5,119.07,119.02,8.4067]
[1744378448048,21.27700433,119.06,119.03,0.05678178]
[1744378448251,41.5,119.07,119.03,0.05678178]
[1744378448946,2.7747,119.09,119.04,21.27700433]
[1744378449145,2.6159,119.12,119.04,24.15590433]
[1744378449449,23.89290433,119.12,119.04,2.8789]
[1744378449750,8.4022,119.09,119.07,0.05433148]
[1744378449944,41.48,119.09,119.07,0.05433148]
[1744378450250,8.404,119.06,119.03,8.4056]
[1744378450449,5.3574,119.08,119.01,2.7289]
[1744378450747,8.4041,119.06,119.03,8.4057]
[1744378450948,26.63440433,119.08,118.99,5.6628]
[1744378451339,8.4047,119.05,119.02,8.4065]
[1744378451543,0.05326209,119.05,119.02,0.05384165]
[1744378451850,0.05326209,119.05,119.03,8.4054]
[1744378452241,0.05326209,119.05,119.02,0.05384165]
[1744378453249,0.05326209,119.05,119.02,21.33084598]
[1744378453649,0.05326209,119.05,119.04,8.4054]
[1744378455547,650.9359,119.12,119.07,8.403]
[1744378455949,8.4016,119.1,119.07,8.403]
[1744378456251,650.9359,119.12,119.06,8.4036]
[1744378456452,8.4029,119.08,119.02,63.95700433]
[1744378456754,672.21290433,119.12,119.05,8.4043]
[1744378456949,8.4024,119.09,119.04,0.05445179]
[1744378457149,8.4024,119.09,119.02,63.95700433]
[1744378457353,650.9359,119.12,119.08,8.4022]
[1744378457554,42.68,119.12,119.06,21.27700433]
[1744378457854,5.5512,119.14,119.09,0.05357473]
[1744378458153,8.3981,119.15,119.09,0.05357473]
[1744378458360,8.3981,119.15,119.12,8.3994]
[1744378459060,51.0773,119.16,119.12,0.05849913]
[1744378459450,42.68,119.19,119.15,8.3971]
[1744378459652,42.66,119.2,119.12,21.27700433]
[1744378459851,42.66,119.2,119.1,423.95700433]
[1744378459852,42.66,119.2,119.16,0.05635159]
[1744378460154,42.66,119.23,119.16,0.05635159]
[1744378460660,63.93700433,119.23,119.16,0.05635159]
[1744378460850,42.66,119.23,119.16,0.05635159]
[1744378461054,8.3939,119.21,119.18,8.395]
[1744378461250,626.47700433,119.24,119.14,63.93700433]
[1744378461251,21.27700433,119.24,119.14,63.93700433]
[1744378461459,8.2982,119.26,119.18,0.05338762]
[1744378461657,8.3925,119.23,119.19,8.3944]
[1744378461963,29.57520433,119.26,119.21,0.05893752]
[1744378462162,8.2982,119.26,119.16,21.27700433]
[1744378462363,29.57520433,119.26,119.22,0.05951815]
[1744378462752,8.2982,119.26,119.22,0.05951815]
[1744378463263,8.3917,119.24,119.22,0.05951815]
[1744378464563,8.392,119.23,119.22,0.05951815]
[1744378464966,44.16,119.24,119.22,0.05951815]
[1744378465262,605.02,119.31,119.22,0.05951815]
[1744378465462,44.16,119.29,119.2,21.27700433]
[1744378465768,8.3895,119.27,119.25,0.05503574]
[1744378465969,21.27700433,119.28,119.25,0.05503574]
[1744378466268,8.3897,119.27,119.25,0.05503574]
[1744378468077,44.16,119.29,119.25,0.05503574]
[1744378468574,8.3895,119.27,119.25,0.05503574]
[1744378468775,44.16,119.29,119.25,0.05503574]
[1744378469776,8.3895,119.27,119.25,0.05503574]
[1744378469975,44.16,119.29,119.25,0.05503574]
[1744378470172,8.389,119.28,119.25,8.44553574]
[1744378470373,44.16,119.29,119.25,0.05503574]
[1744378470776,8.3888,119.28,119.25,8.44523574]
[1744378471277,16.8058,119.3,119.27,8.3887]
[1744378471581,8.4184,119.3,119.25,0.05503574]
[1744378471964,8.3881,119.29,119.26,8.3895]
[1744378472276,29.69540433,119.3,119.25,0.05503574]
[1744378472474,8.3895,119.27,119.25,0.05503574]
[1744378473077,29.69540433,119.3,119.26,8.3898]
[1744378473586,8.3883,119.29,119.26,8.3898]
[1744378473781,8.4184,119.3,119.25,0.05503574]
[1744378474581,8.3881,119.29,119.25,0.05503574]
[1744378475384,16.8057,119.3,119.27,8.3888]
[1744378475887,8.3888,119.28,119.25,8.44523574]
[1744378476177,8.4184,119.3,119.25,0.05503574]
[1744378476575,5.5146,119.3,119.25,0.05503574]
[1744378477081,52.526,119.32,119.29,8.3871]
[1744378477287,44.14,119.32,119.29,8.3871]
[1744378477582,8.386,119.32,119.29,8.44986498]
[1744378477781,5.8021,119.34,119.29,0.06276498]
[1744378478285,44.12,119.39,119.29,0.06276498]
[1744378478486,44.12,119.39,119.25,84.2159]
[1744378478487,21.27700433,119.35,119.25,67.435]
[1744378478682,21.27700433,119.35,119.29,8.3875]
[1744378478882,21.27700433,119.35,119.29,0.06108526]
[1744378479685,8.386,119.32,119.3,8.3865]
[1744378479886,8.386,119.32,119.29,0.06108526]
[1744378480188,8.3853,119.33,119.29,0.06108526]
[1744378480391,65.39700433,119.35,119.29,0.06108526]
[1744378481188,44.12,119.35,119.29,0.06108526]
[1744378481387,21.27700433,119.37,119.29,0.06108526]
[1744378481586,21.27700433,119.37,119.29,44.1]
[1744378481782,21.27700433,119.37,119.33,8.3846]
[1744378482090,21.27700433,119.37,119.32,0.0601297]
[1744378482286,44.1,119.38,119.32,0.0601297]
[1744378482689,8.5802,119.39,119.32,0.0601297]
[1744378483384,5.8021,119.39,119.32,0.0601297]
[1744378483584,14.1833,119.39,119.33,44.1]
[1744378483881,2.6578,119.43,119.35,0.05674916]
[1744378484078,2.6578,119.43,119.34,2.7688]
[1744378484288,2.6578,119.43,119.38,0.06245119]
[1744378484695,8.379,119.42,119.39,8.3807]
[1744378484898,2.6578,119.43,119.38,0.06245119]
[1744378485280,16.7485,119.49,119.38,0.06245119]
[1744378485481,26.88820433,119.5,119.38,2.6731]
[1744378485687,5.6112,119.5,119.42,0.06309542]
[1744378485989,5.6112,119.5,119.43,44.1]
[1744378486190,44.1,119.6,119.45,0.06294518]
[1744378486387,5.7084,119.56,119.45,21.27700433]
[1744378486591,5.7084,119.56,119.44,2.7334]
[1744378486592,5.7084,119.56,119.51,0.05889692]
[1744378486787,2.8855,119.56,119.51,0.05889692]
[1744378487089,65.37700433,119.6,119.51,21.33590125]
[1744378487292,29.85230433,119.62,119.52,44.08]
[1744378487587,838.07297167,119.69,119.54,0.05389175]
[1744378487791,45.54197754,119.67,119.57,21.27700433]
[1744378487990,71.06540433,119.67,119.6,0.05738824]
[1744378488190,49.7884,119.67,119.6,0.05738824]
[1744378488394,21.27700433,119.65,119.6,0.05738824]
[1744378489091,45.6,119.66,119.6,0.05738824]
[1744378489799,66.87700433,119.66,119.6,0.05738824]
[1744378489991,21.27700433,119.64,119.6,0.05738824]
[1744378490296,2.88580575,119.68,119.6,0.05738824]
[1744378490490,26.94140433,119.67,119.56,21.27700433]
[1744378490690,26.94140433,119.67,119.63,0.06452072]
[1744378490998,8.3647,119.62,119.6,0.05557617]
[1744378491295,45.58,119.65,119.56,21.27700433]
[1744378491589,0.0589046,119.62,119.58,21.27700433]
[1744378491983,0.0589046,119.62,119.6,8.3655]
[1744378492189,0.0589046,119.62,119.58,21.27700433]
[1744378492390,0.0589046,119.62,119.6,8.3656]
[1744378492595,0.0589046,119.62,119.59,0.06353291]
[1744378493190,4.6e-06,119.62,119.61,8.3653]
[1744378493385,2.88580575,119.68,119.6,21.27700433]
[1744378493589,2.88580575,119.68,119.62,21.27700433]
[1744378494393,2.88580575,119.68,119.64,0.06063285]
[1744378495187,602.92,119.74,119.64,0.06063285]
[1744378495485,48.122,119.73,119.63,21.27700433]
[1744378495682,48.122,119.73,119.68,0.06028337]
[1744378495683,21.27700433,119.72,119.68,0.06028337]
[1744378495885,21.27700433,119.7,119.59,21.27700433]
[1744378496090,45.52,119.69,119.59,21.27700433]
[1744378496385,21.27700433,119.68,119.57,48.3338]
[1744378496588,21.27700433,119.68,119.63,0.29764]
[1744378496788,21.27700433,119.66,119.63,0.29764]
[1744378497189,21.33298147,119.66,119.63,0.35328375]
[1744378497495,0.05597714,119.66,119.63,0.35328375]
[1744378498088,21.27700433,119.64,119.58,8.3672]
[1744378498398,8.3604,119.68,119.64,8.3626]
[1744378498592,5.3624,119.72,119.63,45.52]
[1744378498788,2.582,119.73,119.66,21.27700433]
[1744378498987,8.3551,119.76,119.72,8.3572]
[1744378499189,21.27700433,119.79,119.68,66.85335272]
[1744378499488,2.6909,119.8,119.7,21.27700433]
[1744378499696,21.27700433,119.77,119.66,66.79700433]
[1744378500196,21.27700433,119.75,119.64,26.56960433]
[1744378500390,21.33667962,119.73,119.62,21.27700433]
[1744378500695,21.27700433,119.73,119.62,21.27700433]
[1744378500995,5.5034,119.72,119.62,21.27700433]
[1744378501194,5.5034,119.72,119.64,21.27700433]
[1744378501398,45.52,119.83,119.69,33.97567591]
[1744378501586,0.0537423,119.69,119.67,34.03289849]
[1744378501793,79.47567591,119.78,119.67,33.97567591]
[1744378502085,0.05489184,119.69,119.65,33.97567591]
[1744378502300,33.97567591,119.76,119.71,0.05388394]
[1744378502497,33.97567591,119.8,119.71,33.97567591]
[1744378502793,0.06016315,119.77,119.73,33.97567591]
[1744378502994,0.06016315,119.77,119.71,33.97567591]
[1744378503194,8.3554,119.76,119.74,0.06272129]
[1744378503388,0.06016315,119.77,119.74,0.06272129]
[1744378503588,2.6462,119.82,119.75,33.97567591]
[1744378503797,2.6462,119.82,119.71,81.05567591]
[1744378503994,49.7262,119.82,119.73,33.97567591]
[1744378504299,2.6462,119.82,119.73,33.97567591]
[1744378504894,0.05391917,119.79,119.76,0.05609741]